fUSD/lending_fUSD_20250814
["ID","MTS","AMOUNT","RATE_DAILY","PERIOD"]
[379190651,1755180653220,-400.0,0.00027397,2]
[379190653,1755180653230,-1316.15,0.00027397,2]
[379190654,1755180653239,-834.29,0.00027397,2]
[379190656,1755180653249,-400.0,0.00027397,2]
[379190658,1755180653259,-400.0,0.00027397,2]
[379190660,1755180653268,-1490.25,0.00027397,2]
[379190662,1755180653278,-721.82,0.00027397,2]
[379190664,1755180653288,-400.0,0.00027397,2]
[379190665,1755180653297,-400.0,0.00027397,2]
[379190667,1755180653307,-820.38,0.00027397,2]
[379190669,1755180653316,-2976.22,0.00027397,2]
[379190671,1755180653326,-400.0,0.00027397,2]
[379190673,1755180653336,-400.0,0.00027397,2]
[379190674,1755180653345,-3603.84,0.00027397,2]
[379190676,1755180653355,-400.0,0.00027397,2]
[379190678,1755180653365,-400.0,0.00027397,2]
[379190680,1755180653375,-250.0,0.00027397,2]
[379190681,1755180653384,-2467.3,0.00027397,2]
[379190683,1755180653393,-400.0,0.00027397,2]
[379190685,1755180653403,-2392.9,0.00027397,2]
[379190687,1755180653412,-783.5,0.00027397,2]
[379190689,1755180653422,-1108.81,0.00027397,2]
[379190691,1755180653431,-400.0,0.00027397,2]
[379190692,1755180653444,-1450.96,0.00027397,2]
[379190694,1755180653454,-400.0,0.00027397,2]
[379190696,1755180653464,-751.02,0.00027397,2]
[379190698,1755180653473,-400.0,0.00027397,2]
[379190700,1755180653482,-751.02,0.00027397,2]
[379190701,1755180653491,-751.02,0.00027397,2]
[379190703,1755180653501,-1400.11,0.00027397,2]
[379190705,1755180653512,-751.02,0.00027397,2]
[379190707,1755180653521,-751.02,0.00027397,2]
[379190709,1755180653530,-751.02,0.00027397,2]
[379190711,1755180653539,-751.02,0.00027397,2]
[379190712,1755180653548,-751.02,0.00027397,2]
[379190714,1755180653558,-400.0,0.00027397,2]
[379190716,1755180653567,-1077.96,0.00027397,2]
[379190718,1755180653576,-400.0,0.00027397,2]
[379190719,1755180653586,-500.0,0.00027397,2]
[379190721,1755180653595,-400.0,0.00027397,2]
[379190723,1755180653605,-500.0,0.00027397,2]
[379190725,1755180653614,-500.0,0.00027397,2]
[379190727,1755180653624,-500.0,0.00027397,2]
[379190729,1755180653634,-472.98,0.00027397,2]
[379190730,1755180653644,-400.0,0.00027397,2]
[379190732,1755180653653,-400.0,0.00027397,2]
[379190734,1755180653663,-400.0,0.00027397,2]
[379190736,1755180653675,-400.0,0.00027397,2]
[379190738,1755180653684,-906.58,0.00027397,2]
[379190740,1755180653693,-400.0,0.00027397,2]
[379190742,1755180653703,-5562.56,0.00027397,2]
[379190743,1755180653714,-400.0,0.00027397,2]
[379190745,1755180653724,-400.0,0.00027397,2]
[379190747,1755180653733,-400.0,0.00027397,2]
[379190749,1755180653742,-2249.42,0.00027397,2]
[379190751,1755180653751,-1901.71,0.00027397,2]
[379190752,1755180653761,-1484.44,0.00027397,2]
[379190754,1755180653770,-2775.98,0.00027397,2]
[379190756,1755180653779,-549.57,0.00027397,2]
[379190758,1755180653789,-400.0,0.00027397,2]
[379190760,1755180653797,-400.0,0.00027397,2]
[379190762,1755180653807,-1065.28,0.00027397,2]
[379190764,1755180653816,-400.0,0.00027397,2]
[379190766,1755180653825,-967.95,0.00027397,2]
[379190768,1755180653834,-984.92,0.00027397,2]
[379190770,1755180653843,-3468.9,0.00027397,2]
[379190772,1755180653852,-836.83,0.00027397,2]
[379190774,1755180653861,-400.0,0.00027397,2]
[379190776,1755180653871,-400.0,0.00027397,2]
[379190778,1755180653880,-400.0,0.00027397,2]
[379190780,1755180653889,-911.9,0.00027397,2]
[379190782,1755180653898,-1245.94,0.00027397,2]
[379190784,1755180653907,-400.0,0.00027397,2]
[379190786,1755180653917,-656.73,0.00027397,2]
[379190788,1755180653926,-1533.73,0.00027397,2]
[379190790,1755180653937,-4349.94,0.00027397,2]
[379190792,1755180653946,-400.0,0.00027397,2]
[379190794,1755180653956,-400.0,0.00027397,2]
[379190796,1755180653965,-400.0,0.00027397,2]
[379190798,1755180653974,-400.0,0.00027397,2]
[379190800,1755180653983,-726.1,0.00027397,2]
[379190801,1755180653993,-3745.92,0.00027397,2]
[379190804,1755180654003,-1040.02,0.00027397,2]
[379190806,1755180654013,-3846.53,0.00027397,2]
[379190808,1755180654022,-400.0,0.00027397,2]
[379190810,1755180654032,-400.0,0.00027397,2]
[379190812,1755180654041,-400.0,0.00027397,2]
[379190814,1755180654050,-1747.01,0.00027397,2]
[379190816,1755180654060,-582.49,0.00027397,2]
[379190818,1755180654069,-1620.41,0.00027397,2]
[379190820,1755180654079,-543.56,0.00027397,2]
[379190822,1755180654089,-709.82,0.00027397,2]
[379190823,1755180654098,-613.33,0.00027397,2]
[379190824,1755180654108,-400.0,0.00027397,2]
[379190825,1755180654117,-971.37,0.00027397,2]
[379190826,1755180654127,-400.0,0.00027397,2]
[379190827,1755180654136,-400.0,0.00027397,2]
[379190828,1755180654146,-400.0,0.00027397,2]
[379190829,1755180654155,-2162.27,0.00027397,2]
[379190830,1755180654164,-725.15,0.00027397,2]
[379190831,1755180654174,-695.33,0.00027397,2]
[379190832,1755180654183,-400.0,0.00027397,2]
[379190833,1755180654194,-2362.04,0.00027397,2]
[379190834,1755180654204,-400.0,0.00027397,2]
[379190835,1755180654213,-2098.99,0.00027397,2]
[379190836,1755180654223,-1417.52,0.00027397,2]
[379190837,1755180654234,-400.0,0.00027397,2]
[379190838,1755180654243,-454.87,0.00027397,2]
[379190839,1755180654253,-1321.06,0.00027397,2]
[379190840,1755180654263,-400.0,0.00027397,2]
[379190841,1755180654273,-400.0,0.00027397,2]
[379190842,1755180654282,-1387.44,0.00027397,2]
[379190843,1755180654292,-1720.99,0.00027397,2]
[379190844,1755180654302,-400.0,0.00027397,2]
[379190845,1755180654324,-400.0,0.00027397,2]
[379190846,1755180654336,-501.16,0.00027397,2]
[379190848,1755180654346,-400.0,0.00027397,2]
[379190849,1755180654357,-400.0,0.00027397,2]
[379190851,1755180654367,-3101.54,0.00027397,2]
[379190852,1755180654378,-2782.3,0.00027397,2]
[379190854,1755180654388,-1228.74,0.00027397,2]
[379190856,1755180654398,-400.0,0.00027397,2]
[379190858,1755180654408,-400.0,0.00027397,2]
[379190860,1755180654418,-2796.12,0.00027397,2]
[379190862,1755180654428,-400.0,0.00027397,2]
[379190864,1755180654442,-830.76,0.00027397,2]
[379190866,1755180654452,-400.0,0.00027397,2]
[379190868,1755180654462,-400.0,0.00027397,2]
[379190870,1755180654473,-400.0,0.00027397,2]
[379190872,1755180654483,-3353.76,0.00027397,2]
[379190874,1755180654493,-400.0,0.00027397,2]
[379190876,1755180654503,-589.65,0.00027397,2]
[379190878,1755180654512,-400.0,0.00027397,2]
[379190880,1755180654522,-400.0,0.00027397,2]
[379190882,1755180654533,-2254.57,0.00027397,2]
[379190884,1755180654542,-3813.22,0.00027397,2]
[379190886,1755180654552,-1151.29,0.00027397,2]
[379190888,1755180654562,-2708.23,0.00027397,2]
[379190890,1755180654572,-400.0,0.00027397,2]
[379190892,1755180654582,-400.0,0.00027397,2]
[379190894,1755180654592,-1105.94,0.00027397,2]
[379190896,1755180654602,-400.0,0.00027397,2]
[379190898,1755180654612,-3351.44,0.00027397,2]
[379190900,1755180654622,-617.43,0.00027397,2]
[379190902,1755180654635,-400.0,0.00027397,2]
[379190904,1755180654645,-400.0,0.00027397,2]
[379190906,1755180654655,-565.53,0.00027397,2]
[379190908,1755180654665,-1847.12,0.00027397,2]
[379190910,1755180654675,-565.53,0.00027397,2]
[379190912,1755180654688,-400.0,0.00027397,2]
[379190915,1755180654697,-495.86,0.00027397,2]
[379190917,1755180654707,-400.0,0.00027397,2]
[379190919,1755180654718,-659.87,0.00027397,2]
[379190921,1755180654728,-565.53,0.00027397,2]
[379190923,1755180654738,-565.53,0.00027397,2]
[379190925,1755180654748,-565.53,0.00027397,2]
[379190927,1755180654758,-565.53,0.00027397,2]
[379190929,1755180654767,-565.53,0.00027397,2]
[379190931,1755180654777,-400.0,0.00027397,2]
[379190933,1755180654787,-565.53,0.00027397,2]
[379190935,1755180654799,-400.0,0.00027397,2]
[379190937,1755180654811,-565.53,0.00027397,2]
[379190939,1755180654821,-400.0,0.00027397,2]
[379190941,1755180654831,-740.15,0.00027397,2]
[379190943,1755180654841,-400.0,0.00027397,2]
[379190945,1755180654851,-2067.63,0.00027397,2]
[379190947,1755180654860,-484.30098475,0.00027397,2]
[379190949,1755180654869,-500.62,0.00027397,2]
[379190951,1755180654879,-1630.79,0.00027397,2]
[379190954,1755180654891,-1736.49,0.00027397,2]
[379190956,1755180654900,-160.87151463,0.00027397,2]
[379190958,1755180654910,-1767.59,0.00027397,2]
[379190960,1755180654920,-400.0,0.00027397,2]
[379190962,1755180654930,-400.0,0.00027397,2]
[379190964,1755180654943,-2650.26,0.00027397,2]
[379190966,1755180654952,-400.0,0.00027397,2]
[379190968,1755180654962,-400.0,0.00027397,2]
[379190970,1755180654972,-400.0,0.00027397,2]
[379190972,1755180654983,-400.0,0.00027397,2]
[379190974,1755180654993,-2183.0,0.00027397,2]
[379190976,1755180655003,-400.0,0.00027397,2]
[379190978,1755180655013,-400.0,0.00027397,2]
[379190980,1755180655023,-400.0,0.00027397,2]
[379190982,1755180655033,-1800.96,0.00027397,2]
[379190984,1755180655042,-1381.83,0.00027397,2]
[379190986,1755180655052,-400.0,0.00027397,2]
[379190988,1755180655062,-3674.53,0.00027397,2]
[379190990,1755180655072,-3035.81,0.00027397,2]
[379190993,1755180655083,-1195.79,0.00027397,2]
[379190995,1755180655092,-400.0,0.00027397,2]
[379190997,1755180655102,-1549.33,0.00027397,2]
[379190999,1755180655111,-3528.51,0.00027397,2]
[379191001,1755180655122,-400.0,0.00027397,2]
[379191003,1755180655133,-2988.95,0.00027397,2]
[379191005,1755180655142,-400.0,0.00027397,2]
[379191007,1755180655152,-400.0,0.00027397,2]
[379191009,1755180655161,-400.0,0.00027397,2]
[379191011,1755180655170,-403.6,0.00027397,2]
[379191013,1755180655180,-400.0,0.00027397,2]
[379191015,1755180655192,-400.0,0.00027397,2]
[379191017,1755180655202,-400.0,0.00027397,2]
[379191019,1755180655212,-400.0,0.00027397,2]
[379191021,1755180655222,-3226.16,0.00027397,2]
[379191023,1755180655231,-400.0,0.00027397,2]
[379191025,1755180655241,-1167.9,0.00027397,2]
[379191027,1755180655251,-1094.01,0.00027397,2]
[379191029,1755180655260,-400.0,0.00027397,2]
[379191031,1755180655269,-400.0,0.00027397,2]
[379191033,1755180655279,-1159.14,0.00027397,2]
[379191035,1755180655289,-3049.99,0.00027397,2]
[379191037,1755180655299,-400.0,0.00027397,2]
[379191039,1755180655308,-726.2,0.00027397,2]
[379191041,1755180655319,-400.0,0.00027397,2]
[379191043,1755180655329,-1077.86,0.00027397,2]
[379191045,1755180655339,-400.0,0.00027397,2]
[379191047,1755180655348,-166.11470442,0.00027397,2]
[379191049,1755180655358,-520.02,0.00027397,2]
[379191051,1755180655368,-2076.13,0.00027397,2]
[379191053,1755180655379,-400.0,0.00027397,2]
[379191054,1755180655388,-967.68,0.00027397,2]
[379191055,1755180655398,-2968.85,0.00027397,2]
[379191056,1755180655407,-2522.24,0.00027397,2]
[379191057,1755180655417,-178.13646913,0.00027397,2]
[379191058,1755180655427,-400.0,0.00027397,2]
[379191059,1755180655439,-3520.12,0.00027397,2]
[379191060,1755180655448,-400.0,0.00027397,2]
[379191061,1755180655458,-1452.37,0.00027397,2]
[379191062,1755180655468,-887.98,0.00027397,2]
[379191063,1755180655477,-1778.32,0.00027397,2]
[379191064,1755180655487,-1847.06,0.00027397,2]
[379191065,1755180655496,-400.0,0.00027397,2]
[379191066,1755180655507,-1626.72,0.00027397,2]
[379191069,1755180655517,-508.05,0.00027397,2]
[379191071,1755180655526,-400.0,0.00027397,2]
[379191073,1755180655535,-582.26,0.00027397,2]
[379191075,1755180655545,-400.0,0.00027397,2]
[379191077,1755180655554,-400.0,0.00027397,2]
[379191079,1755180655564,-400.0,0.00027397,2]
[379191081,1755180655574,-1302.32,0.00027397,2]
[379191083,1755180655584,-400.0,0.00027397,2]
[379191085,1755180655594,-400.0,0.00027397,2]
[379191087,1755180655603,-400.0,0.00027397,2]
[379191089,1755180655614,-1823.58,0.00027397,2]
[379191091,1755180655624,-853.89,0.00027397,2]
[379191093,1755180655637,-2366.44,0.00027397,2]
[379191095,1755180655646,-400.0,0.00027397,2]
[379191097,1755180655656,-400.0,0.00027397,2]
[379191099,1755180655667,-2498.72,0.00027397,2]
[379191101,1755180655677,-400.0,0.00027397,2]
[379191103,1755180655687,-953.9,0.00027397,2]
[379191105,1755180655698,-400.0,0.00027397,2]
[379191108,1755180655709,-400.0,0.00027397,2]
[379191110,1755180655718,-418.22,0.00027397,2]
[379191112,1755180655728,-400.0,0.00027397,2]
[379191114,1755180655738,-1169.25,0.00027397,2]
[379191116,1755180655747,-400.0,0.00027397,2]
[379191118,1755180655757,-490.42,0.00027397,2]
[379191120,1755180655766,-151.0,0.00027397,7]
[379191122,1755180655776,-1242.41,0.00027397,2]
[379191124,1755180655786,-400.0,0.00027397,2]
[379191126,1755180655796,-1110.12,0.00027397,2]
[379191128,1755180655806,-964.56,0.00027397,2]
[379191130,1755180655816,-2046.82,0.00027397,2]
[379191132,1755180655826,-400.0,0.00027397,2]
[379191134,1755180655835,-400.0,0.00027397,2]
[379191137,1755180655845,-3445.29,0.00027397,2]
[379191139,1755180655855,-985.81,0.00027397,2]
[379191141,1755180655864,-2494.27,0.00027397,2]
[379191143,1755180655874,-1544.6,0.00027397,2]
[379191145,1755180655883,-2849.16,0.00027397,2]
[379191147,1755180655893,-1696.24,0.00027397,2]
[379191149,1755180655903,-400.0,0.00027397,2]
[379191151,1755180655912,-3547.79,0.00027397,2]
[379191153,1755180655921,-400.0,0.00027397,2]
[379191155,1755180655931,-656.01,0.00027397,2]
[379191157,1755180655942,-2429.26,0.00027397,2]
[379191159,1755180655951,-400.0,0.00027397,2]
[379191161,1755180655961,-400.0,0.00027397,2]
[379191163,1755180655971,-400.0,0.00027397,2]
[379191165,1755180655981,-2928.3,0.00027397,2]
[379191167,1755180655990,-1437.2,0.00027397,2]
[379191169,1755180655999,-2089.0,0.00027397,2]
[379191171,1755180656009,-1817.12,0.00027397,2]
[379191206,1755180656324,-400.0,0.00027397,2]
[379191209,1755180656346,-506.89,0.00027397,2]
[379191211,1755180656356,-1035.02,0.00027397,2]
[379191213,1755180656366,-1787.84,0.00027397,2]
[379191215,1755180656376,-632.73,0.00027397,2]
[379191217,1755180656385,-2702.84,0.00027397,2]
[379191219,1755180656395,-400.0,0.00027397,2]
[379191220,1755180656405,-400.0,0.00027397,2]
[379191221,1755180656415,-400.0,0.00027397,2]
[379191222,1755180656425,-400.0,0.00027397,2]
[379191223,1755180656434,-1598.81,0.00027397,2]
[379191224,1755180656446,-400.0,0.00027397,2]
[379191225,1755180656455,-400.0,0.00027397,2]
[379191226,1755180656465,-400.0,0.00027397,2]
[379191227,1755180656475,-424.48,0.00027397,2]
[379191228,1755180656484,-1785.33,0.00027397,2]
[379191229,1755180656494,-1475.27,0.00027397,2]
[379191230,1755180656503,-400.0,0.00027397,2]
[379191231,1755180656513,-400.0,0.00027397,2]
[379191232,1755180656523,-1853.12,0.00027397,2]
[379191233,1755180656532,-1639.57,0.00027397,2]
[379191234,1755180656542,-481.67,0.00027397,2]
[379191235,1755180656551,-400.0,0.00027397,2]
[379191236,1755180656562,-1640.93,0.00027397,2]
[379191237,1755180656571,-400.0,0.00027397,2]
[379191238,1755180656581,-1025.73,0.00027397,2]
[379191239,1755180656591,-4788.69,0.00027397,2]
[379191240,1755180656600,-400.0,0.00027397,2]
[379191241,1755180656610,-151.0,0.00027397,7]
[379191242,1755180656619,-2092.98,0.00027397,2]
[379191243,1755180656630,-2861.98,0.00027397,2]
[379191244,1755180656645,-400.0,0.00027397,2]
[379191245,1755180656654,-400.0,0.00027397,2]
[379191246,1755180656664,-400.0,0.00027397,2]
[379191247,1755180656674,-400.0,0.00027397,2]
[379191248,1755180656683,-400.0,0.00027397,2]
[379191249,1755180656695,-534.26,0.00027397,2]
[379191250,1755180656704,-532.30573842,0.00027397,2]
[379191251,1755180656714,-3730.89,0.00027397,2]
[379191252,1755180656725,-400.0,0.00027397,2]
[379191253,1755180656736,-400.0,0.00027397,2]
[379191254,1755180656746,-837.91,0.00027397,2]
[379191255,1755180656755,-1164.05,0.00027397,2]
[379191256,1755180656765,-400.0,0.00027397,2]
[379191257,1755180656775,-400.0,0.00027397,2]
[379191258,1755180656786,-495.24,0.00027397,2]
[379191259,1755180656795,-400.0,0.00027397,2]
[379191260,1755180656805,-416.81499118,0.00027397,2]
[379191261,1755180656814,-400.0,0.00027397,2]
[379191262,1755180656824,-928.7,0.00027397,2]
[379191263,1755180656834,-2869.01,0.00027397,2]
[379191264,1755180656844,-2547.02,0.00027397,2]
[379191265,1755180656853,-1415.57,0.00027397,2]
[379191266,1755180656863,-403.8,0.00027397,2]
[379191267,1755180656873,-400.0,0.00027397,2]
[379191268,1755180656883,-1678.08,0.00027397,2]
[379191269,1755180656893,-520.23,0.00027397,2]
[379191270,1755180656903,-2215.13,0.00027397,2]
[379191271,1755180656913,-565.18,0.00027397,2]
[379191272,1755180656923,-2272.87,0.00027397,2]
[379191273,1755180656933,-450.57,0.00027397,2]
[379191274,1755180656944,-2419.64,0.00027397,2]
[379191275,1755180656954,-400.0,0.00027397,2]
[379191276,1755180656964,-400.0,0.00027397,2]
[379191277,1755180656973,-400.0,0.00027397,2]
[379191278,1755180656983,-400.0,0.00027397,2]
[379191279,1755180656993,-1653.2,0.00027397,2]
[379191280,1755180657002,-471.65,0.00027397,2]
[379191281,1755180657011,-400.0,0.00027397,2]
[379191282,1755180657022,-2071.98,0.00027397,2]
[379191283,1755180657032,-882.66,0.00027397,2]
[379191284,1755180657041,-414.39,0.00027397,2]
[379191285,1755180657051,-1810.84,0.00027397,2]
[379191286,1755180657060,-1272.76,0.00027397,2]
[379191287,1755180657070,-999.14,0.00027397,2]
[379191288,1755180657079,-3547.01,0.00027397,2]
[379191289,1755180657089,-400.0,0.00027397,2]
[379191290,1755180657098,-984.98,0.00027397,2]
[379191291,1755180657108,-2174.31,0.00027397,2]
[379191292,1755180657118,-453.17,0.00027397,2]
[379191293,1755180657128,-712.29,0.00027397,2]
[379191294,1755180657137,-400.0,0.00027397,2]
[379191295,1755180657147,-2310.72,0.00027397,2]
[379191296,1755180657156,-400.0,0.00027397,2]
[379191297,1755180657166,-2456.86,0.00027397,2]
[379191298,1755180657176,-472.47,0.00027397,2]
[379191299,1755180657186,-2480.7,0.00027397,2]
[379191300,1755180657198,-423.89,0.00027397,2]
[379191301,1755180657208,-401.98615503,0.00027397,2]
[379191302,1755180657217,-542.31,0.00027397,2]
[379191303,1755180657227,-1227.08,0.00027397,2]
[379191304,1755180657237,-709.38,0.00027397,2]
[379191305,1755180657246,-400.0,0.00027397,2]
[379191306,1755180657256,-400.0,0.00027397,2]
[379191307,1755180657265,-400.0,0.00027397,2]
[379191308,1755180657275,-562.48,0.00027397,2]
[379191309,1755180657285,-693.06,0.00027397,2]
[379191310,1755180657294,-2623.61,0.00027397,2]
[379191311,1755180657304,-400.0,0.00027397,2]
[379191312,1755180657314,-2693.55,0.00027397,2]
[379191313,1755180657325,-2317.35,0.00027397,2]
[379191314,1755180657334,-1645.25,0.00027397,2]
[379191315,1755180657344,-400.0,0.00027397,2]
[379191316,1755180657354,-3407.66,0.00027397,2]
[379191317,1755180657363,-400.0,0.00027397,2]
[379191318,1755180657373,-462.73,0.00027397,2]
[379191319,1755180657383,-2471.17,0.00027397,2]
[379191320,1755180657393,-400.0,0.00027397,2]
[379191321,1755180657402,-463.38,0.00027397,2]
[379191322,1755180657412,-400.0,0.00027397,2]
[379191323,1755180657422,-1356.75,0.00027397,2]
[379191324,1755180657432,-400.0,0.00027397,2]
[379191325,1755180657441,-879.87,0.00027397,2]
[379191326,1755180657451,-3015.32,0.00027397,2]
[379191327,1755180657460,-400.0,0.00027397,2]
[379191328,1755180657470,-2523.16,0.00027397,2]
[379191329,1755180657480,-806.31,0.00027397,2]
[379191330,1755180657489,-1069.78,0.00027397,2]
[379191331,1755180657499,-400.0,0.00027397,2]
[379191332,1755180657509,-500.0,0.00027397,2]
[379191333,1755180657519,-400.0,0.00027397,2]
[379191334,1755180657528,-996.65,0.00027397,2]
[379191335,1755180657538,-2511.65,0.00027397,2]
[379191336,1755180657547,-2094.85,0.00027397,2]
[379191337,1755180657557,-400.0,0.00027397,2]
[379191338,1755180657566,-400.0,0.00027397,2]
[379191339,1755180657575,-400.0,0.00027397,2]
[379191340,1755180657584,-528.97,0.00027397,2]
[379191341,1755180657594,-1561.91,0.00027397,2]
[379191342,1755180657604,-423.06604886,0.00027397,2]
[379191343,1755180657615,-532.22,0.00027397,2]
[379191344,1755180657625,-400.0,0.00027397,2]
[379191345,1755180657639,-400.0,0.00027397,2]
[379191346,1755180657648,-1272.45,0.00027397,2]
[379191347,1755180657658,-1069.89,0.00027397,2]
[379191348,1755180657668,-400.0,0.00027397,2]
[379191349,1755180657677,-400.0,0.00027397,2]
[379191350,1755180657687,-2978.9,0.00027397,2]
[379191351,1755180657698,-500.0,0.00027397,2]
[379191352,1755180657709,-400.0,0.00027397,2]
[379191353,1755180657719,-500.0,0.00027397,2]
[379191354,1755180657728,-500.0,0.00027397,2]
[379191355,1755180657738,-400.0,0.00027397,2]
[379191356,1755180657747,-500.0,0.00027397,2]
[379191357,1755180657757,-3873.92,0.00027397,2]
[379191358,1755180657767,-500.0,0.00027397,2]
[379191359,1755180657776,-1627.28,0.00027397,2]
[379191360,1755180657786,-2312.65,0.00027397,2]
[379191361,1755180657796,-500.0,0.00027397,2]
[379191362,1755180657806,-400.0,0.00027397,2]
[379191363,1755180657816,-500.0,0.00027397,2]
[379191364,1755180657826,-5175.8,0.00027397,2]
[379191365,1755180657836,-500.0,0.00027397,2]
[379191366,1755180657845,-500.0,0.00027397,2]
[379191367,1755180657855,-500.0,0.00027397,2]
[379191368,1755180657865,-1258.62,0.00027397,2]
[379191369,1755180657874,-400.0,0.00027397,2]
[379191370,1755180657884,-904.5,0.00027397,2]
[379191371,1755180657893,-400.0,0.00027397,2]
[379191372,1755180657902,-400.0,0.00027397,2]
[379191373,1755180657911,-644.85166768,0.00027397,2]
[379191374,1755180657957,-144.97833232,0.00027397,2]
[379191375,1755180657967,-586.48,0.00027397,2]
[379191376,1755180657977,-1762.68,0.00027397,2]
[379191377,1755180657986,-400.0,0.00027397,2]
[379191378,1755180657996,-400.0,0.00027397,2]
[379191379,1755180658006,-400.0,0.00027397,2]
[379191380,1755180658015,-418.51,0.00027397,2]
[379191381,1755180658025,-400.0,0.00027397,2]
[379191382,1755180658035,-1046.80642203,0.00027397,2]
[379191383,1755180658048,-1277.29231165,0.00027397,2]
[379191387,1755180659422,-150.0,0.00026302,2]
[379191388,1755180659432,-150.0,0.00026578,2]
[379191389,1755180659443,-150.0,0.00027066,2]
[379191390,1755180659453,-150.0,0.00027146,2]
[379191391,1755180659463,-150.0,0.00027248,2]
[379191392,1755180659472,-150.0,0.00027366,2]
[379191393,1755180659482,-403.68126632,0.00027397,2]
[379191394,1755180659491,-1329.68,0.00027397,2]
[379191395,1755180659501,-2900.58,0.00027397,2]
[379191396,1755180659510,-3457.45,0.00027397,2]
[379191397,1755180659520,-645.21,0.00027397,2]
[379191398,1755180659530,-400.0,0.00027397,2]
[379191399,1755180659539,-400.0,0.00027397,2]
[379191400,1755180659549,-2070.58,0.00027397,2]
[379191401,1755180659559,-400.0,0.00027397,2]
[379191402,1755180659569,-1956.91,0.00027397,2]
[379191403,1755180659578,-400.0,0.00027397,2]
[379191404,1755180659588,-431.48,0.00027397,2]
[379191405,1755180659597,-400.0,0.00027397,2]
[379191406,1755180659607,-1586.27,0.00027397,2]
[379191407,1755180659617,-1458.48,0.00027397,2]
[379191408,1755180659627,-400.0,0.00027397,2]
[379191409,1755180659641,-867.97,0.00027397,2]
[379191410,1755180659651,-1098.33,0.00027397,2]
[379191411,1755180659661,-1880.58,0.00027397,2]
[379191412,1755180659671,-400.0,0.00027397,2]
[379191413,1755180659682,-400.0,0.00027397,2]
[379191414,1755180659691,-400.0,0.00027397,2]
[379191415,1755180659702,-1203.6,0.00027397,2]
[379191416,1755180659715,-557.64,0.00027397,2]
[379191417,1755180659725,-2706.02,0.00027397,2]
[379191418,1755180659735,-1909.85,0.00027397,2]
[379191419,1755180659744,-4785.55,0.00027397,2]
[379191420,1755180659755,-1001.67,0.00027397,2]
[379191421,1755180659765,-400.0,0.00027397,2]
[379191422,1755180659776,-400.0,0.00027397,2]
[379191423,1755180659786,-400.0,0.00027397,2]
[379191424,1755180659796,-400.0,0.00027397,2]
[379191425,1755180659806,-945.79,0.00027397,2]
[379191426,1755180659815,-12542.16,0.00027397,2]
[379191427,1755180659825,-3219.08,0.00027397,2]
[379191428,1755180659834,-854.67,0.00027397,2]
[379191429,1755180659844,-408.97,0.00027397,2]
[379191430,1755180659853,-400.0,0.00027397,2]
[379191431,1755180659863,-682.6,0.00027397,2]
[379191432,1755180659873,-842.29,0.00027397,2]